[Event "23rd OIBM 2019"]
[Site "Gmund am Tegernsee"]
[Date "2019.10.29"]
[Round "4.39"]
[White "Fiedorek, Michal"]
[Black "Tillmann, Markus"]
[Result "0-1"]
[ECO "C88"]
[WhiteElo "2343"]
[BlackElo "2136"]
[Annotator "ChessBase"]
[PlyCount "84"]
[EventDate "2019.10.17"]
[EventType "swiss"]
[EventCountry "GER"]
[SourceTitle "playchess.com"]
[Source "ChessBase"]
[SourceQuality "1"]
[TimeControl "40/5400+30:1800+30"]

1. e4 {[%emt 0:00:00]} e5 {[%emt 0:00:33]} 2. Nf3 {[%emt 0:00:00]} Nc6 {[%emt 0:00:05]} 3. Bb5 {[%emt 0:00:00]} a6 {[%emt 0:00:05]} 4. Ba4 {[%emt 0:00:02]} Nf6 {[%emt 0:00:04]} 5. O-O {[%emt 0:00:18]} Be7 {[%emt 0:03:49]} 6. Re1 {[%emt 0:00:11]} b5 {[%emt 0:00:13]} 7. Bb3 {[%emt 0:00:07]} d6 {[%emt 0:00:25]} 8. a4 {[%emt 0:00:19]} Bg4 {[%emt 0:14:07]} 9. c3 {[%emt 0:01:08]} Rb8 {[%emt 0:04:20]} 10. axb5 {[%emt 0:04:02]} axb5 {[%emt 0:00:17]} 11. d4 {[%emt 0:03:07]} Bxf3 {[%emt 0:02:51]} 12. gxf3 {[%emt 0:00:38]} Qd7 {[%emt 0:06:56]} 13. Kg2 O-O {[%emt 0:02:24]} 14. d5 {[%emt 0:18:12]} Nd8 {[%emt 0:00:15]} 15. f4 {[%emt 0:02:36]} Kh8 {[%emt 0:06:12]} 16. Qf3 {[%emt 0:13:00]} b4 {[%emt 0:09:49]} 17. cxb4 {[%emt 0:08:20]} Rxb4 {[%emt 0:01:36]} 18. Bd2 {[%emt 0:00:43]} Rb8 {[%emt 0:01:40]} 19. Ba4 {[%emt 0:00:44]} Qc8 {[%emt 0:01:16]} 20. Bc3 {[%emt 0:01:12]} exf4 {[%emt 0:02:21]} 21. Qxf4 {[%emt 0:01:39]} Ng4 {[%emt 0:03:06]} 22. h3 {[%emt 0:19:52]} Ne5 {[%emt 0:00:17]} 23. Bc2 {[%emt 0:00:47]} Bf6 {[%emt 0:06:31]} 24. Qg3 {[%emt 0:02:14]} Rg8 {[%emt 0:10:37]} 25. Nd2 {[%emt 0:04:27]} Qd7 {[%emt 0:05:33]} 26. Nf3 {[%emt 0:06:39]} Nc4 {[%emt 0:01:07]} 27. Nd4 {[%emt 0:01:24]} c5 {[%emt 0:03:32]} 28. dxc6 {[%emt 0:01:35]} Nxc6 {[%emt 0:00:56]} 29. Ba4 {[%emt 0:03:36]} Bxd4 {[%emt 0:02:44]} 30. Bxd4 {[%emt 0:00:39]} Qb7 {[%emt 0:00:50]} 31. Bc3 {[%emt 0:01:05]} N4e5 {[%emt 0:03:42]} 32. Rad1 {[%emt 0:01:38]} f5 {[%emt 0:02:05]} 33. Rxd6 {[%emt 0:04:18]} Ra8 {[%emt 0:02:03]} 34. Bc2 {[%emt 0:01:33]} f4 {[%emt 0:00:23]} 35. Qxf4 {[%emt 0:00:40]} Rgf8 {[%emt 0:00:44]} 36. Qc1 {[%emt 0:00:36]} Nf3 {[%emt 0:00:37]} 37. Re3 {[%emt 0:00:29]} Qc7 {[%emt 0:00:43]} 38. Qd1 {[%emt 0:00:33]} Nce5 {[%emt 0:01:46]} 39. Re2 {[%emt 0:00:26]} Qe7 {[%emt 0:00:42]} 40. Bxe5 {[%emt 0:00:30]} Qxe5 {[%emt 0:00:14]} 41. Re3 {[%emt 0:06:38]} Qh2+ {[%emt 0:03:51]} 42. Kf1 {[%emt 0:00:05]} Nd4 {[%emt 0:05:56]} 0-1

[Event "23rd OIBM 2019"]
[Site "Gmund am Tegernsee"]
[Date "2019.10.29"]
[Round "4.40"]
[White "Singer, Christoph"]
[Black "Smits, Mark"]
[Result "1/2-1/2"]
[ECO "C50"]
[WhiteElo "2339"]
[BlackElo "2132"]
[Annotator "ChessBase"]
[PlyCount "52"]
[EventDate "2019.10.17"]
[EventType "swiss"]
[EventCountry "GER"]
[SourceTitle "playchess.com"]
[Source "ChessBase"]
[SourceQuality "1"]
[TimeControl "40/5400+30:1800+30"]

1. e4 {[%emt 0:00:00]} e5 {[%emt 0:00:00]} 2. Nf3 {[%emt 0:00:00]} Nc6 {[%emt 0:00:00]} 3. Bc4 {[%emt 0:00:00]} g6 {[%emt 0:00:49]} 4. d4 {[%emt 0:06:24]} exd4 {[%emt 0:00:52]} 5. Nxd4 {[%emt 0:05:28]} Bg7 {[%emt 0:01:01]} 6. Nxc6 {[%emt 0:02:07]} bxc6 {[%emt 0:00:23]} 7. O-O {[%emt 0:00:09]} Ne7 {[%emt 0:01:46]} 8. Nc3 {[%emt 0:00:11]} d6 {[%emt 0:00:20]} 9. Be3 {[%emt 0:00:21]} O-O {[%emt 0:02:48]} 10. Bd4 {[%emt 0:00:08]} Be6 {[%emt 0:03:54]} 11. Bxg7 {[%emt 0:01:40]} Kxg7 {[%emt 0:00:06]} 12. Bb3 {[%emt 0:02:05]} Qd7 {[%emt 0:01:17]} 13. Qd4+ {[%emt 0:16:28]} f6 {[%emt 0:01:06]} 14. Rad1 {[%emt 0:00:19]} Bxb3 {[%emt 0:09:21]} 15. axb3 {[%emt 0:00:28]} Qe6 {[%emt 0:00:21]} 16. Rfe1 {[%emt 0:06:32]} a5 {[%emt 0:10:27]} 17. f4 {[%emt 0:12:05]} c5 {[%emt 0:03:42]} 18. Qd2 {[%emt 0:03:11]} Nc6 {[%emt 0:02:28]} 19. Nd5 {[%emt 0:02:25]} Qf7 {[%emt 0:00:45]} 20. Ra1 {[%emt 0:08:23]} Nd4 {[%emt 0:03:28]} 21. Ra3 {[%emt 0:06:10]} f5 {[%emt 0:02:16]} 22. Ra4 {[%emt 0:04:25]} fxe4 {[%emt 0:12:17]} 23. Rxd4 {[%emt 0:00:05]} cxd4 {[%emt 0:00:09]} 24. Qxd4+ {[%emt 0:00:03]} Kg8 {[%emt 0:00:14]} 25. Rxe4 {[%emt 0:01:35]} c5 {[%emt 0:12:05]} 26. Qc4 {[%emt 0:01:42]} Ra7 {[%emt 0:02:42]} 1/2-1/2

[Event "23rd OIBM 2019"]
[Site "Gmund am Tegernsee"]
[Date "2019.10.29"]
[Round "4.44"]
[White "Karpa, Adrian"]
[Black "Markmann, Ulrich"]
[Result "1/2-1/2"]
[ECO "B40"]
[WhiteElo "2087"]
[BlackElo "2279"]
[Annotator "ChessBase"]
[PlyCount "65"]
[EventDate "2019.10.17"]
[EventType "swiss"]
[EventCountry "GER"]
[SourceTitle "playchess.com"]
[Source "ChessBase"]
[SourceQuality "1"]
[TimeControl "40/5400+30:1800+30"]

1. e4 c5 {[%emt 0:00:00]} 2. Nf3 {[%emt 0:00:00]} e6 {[%emt 0:00:00]} 3. d3 {[%emt 0:00:00]} d5 {[%emt 0:05:08]} 4. Nbd2 {[%emt 0:00:05]} Nc6 {[%emt 0:00:06]} 5. g3 {[%emt 0:00:08]} Bd6 {[%emt 0:00:19]} 6. Bg2 {[%emt 0:00:17]} Nge7 {[%emt 0:00:06]} 7. O-O {[%emt 0:00:14]} Qc7 {[%emt 0:00:15]} 8. Re1 {[%emt 0:00:50]} O-O {[%emt 0:18:15]} 9. c3 {[%emt 0:01:30]} dxe4 {[%emt 0:31:53]} 10. dxe4 {[%emt 0:00:26]} Rd8 {[%emt 0:00:43]} 11. Qe2 {[%emt 0:02:59]} e5 {[%emt 0:00:48]} 12. Nc4 {[%emt 0:00:34]} f6 {[%emt 0:06:27]} 13. Be3 {[%emt 0:06:46]} b6 {[%emt 0:00:35]} 14. Rad1 {[%emt 0:06:37]} Be6 {[%emt 0:01:01]} 15. Nh4 {[%emt 0:01:17]} Na5 {[%emt 0:04:52]} 16. Na3 {[%emt 0:10:16]} a6 {[%emt 0:08:03]} 17. Bc1 {[%emt 0:16:30]} c4 {[%emt 0:00:46]} 18. Nc2 {[%emt 0:03:08]} Bc5 {[%emt 0:03:00]} 19. Nf5 {[%emt 0:02:35]} Rxd1 {[%emt 0:01:56]} 20. Rxd1 {[%emt 0:00:31]} Rd8 {[%emt 0:00:02]} 21. Nfe3 {[%emt 0:02:47]} Rxd1+ {[%emt 0:01:14]} 22. Qxd1 {[%emt 0:00:06]} Qd7 {[%emt 0:00:18]} 23. Qxd7 {[%emt 0:02:55]} Bxd7 {[%emt 0:00:02]} 24. Nb4 {[%emt 0:00:17]} Bc8 {[%emt 0:06:22]} 25. Nbd5 {[%emt 0:17:45]} Nxd5 {[%emt 0:00:15]} 26. Nxd5 {[%emt 0:00:43]} Kf8 {[%emt 0:00:14]} 27. Bf3 {[%emt 0:01:21]} b5 {[%emt 0:01:35]} 28. Bd1 {[%emt 0:01:49]} Nb7 {[%emt 0:00:52]} 29. Kf1 {[%emt 0:03:27]} Nd6 {[%emt 0:00:28]} 30. f3 {[%emt 0:00:14]} Bb7 {[%emt 0:00:30]} 31. Be3 {[%emt 0:01:30]} Bxe3 {[%emt 0:00:16]} 32. Nxe3 {[%emt 0:00:06]} Ke7 {[%emt 0:00:58]} 33. a4 {[%emt 0:03:14]} 1/2-1/2

[Event "23rd OIBM 2019"]
[Site "Gmund am Tegernsee"]
[Date "2019.10.30"]
[Round "5.1"]
[White "Mons, Leon"]
[Black "Idani, Pouya"]
[Result "1/2-1/2"]
[ECO "C43"]
[WhiteElo "2552"]
[BlackElo "2568"]
[Annotator "ChessBase"]
[PlyCount "48"]
[EventDate "2019.10.17"]
[EventType "swiss"]
[EventCountry "GER"]
[SourceTitle "playchess.com"]
[Source "ChessBase"]
[SourceQuality "1"]
[TimeControl "40/5400+30:1800+30"]

1. e4 {[%emt 0:00:00]} e5 {[%emt 0:00:00]} 2. Nf3 {[%emt 0:00:00]} Nf6 {[%emt 0:00:00]} 3. d4 {[%emt 0:04:03]} Nxe4 {[%emt 0:03:00]} 4. Bd3 {[%emt 0:00:05]} d5 {[%emt 0:00:04]} 5. Nxe5 {[%emt 0:00:06]} Nd7 {[%emt 0:00:42]} 6. Nxd7 {[%emt 0:06:03]} Bxd7 {[%emt 0:00:05]} 7. O-O {[%emt 0:00:05]} Nf6 {[%emt 0:00:08]} 8. Bg5 {[%emt 0:07:17]} Be7 {[%emt 0:00:22]} 9. c3 {[%emt 0:03:33]} c6 {[%emt 0:01:56]} 10. Qc2 {[%emt 0:06:51]} h6 {[%emt 0:00:12]} 11. Bxf6 {[%emt 0:01:34]} Bxf6 {[%emt 0:00:06]} 12. Re1+ {[%emt 0:00:03]} Kf8 {[%emt 0:08:14]} 13. Nd2 {[%emt 0:00:12]} g6 {[%emt 0:00:35]} 14. Nf3 {[%emt 0:00:38]} Kg7 {[%emt 0:00:25]} 15. Ne5 {[%emt 0:00:37]} Bxe5 {[%emt 0:00:24]} 16. Rxe5 {[%emt 0:02:56]} Re8 {[%emt 0:03:02]} 17. Rae1 {[%emt 0:01:11]} Rxe5 {[%emt 0:02:06]} 18. Rxe5 {[%emt 0:00:15]} Qf8 {[%emt 0:00:12]} 19. Qd2 {[%emt 0:09:56]} f6 {[%emt 0:06:45]} 20. Re2 {[%emt 0:02:38]} Re8 {[%emt 0:00:55]} 21. Qf4 {[%emt 0:01:15]} Rxe2 {[%emt 0:00:06]} 22. Bxe2 {[%emt 0:00:03]} Qe7 {[%emt 0:02:58]} 23. Qc7 {[%emt 0:02:48]} Qxe2 {[%emt 0:00:06]} 24. Qxd7+ {[%emt 0:00:04]} Kf8 {[%emt 0:00:05]} 1/2-1/2

[Event "23rd OIBM 2019"]
[Site "Gmund am Tegernsee"]
[Date "2019.10.30"]
[Round "5.5"]
[White "Vogel, Roven"]
[Black "Gareyev, Timur"]
[Result "0-1"]
[ECO "A40"]
[WhiteElo "2456"]
[BlackElo "2591"]
[Annotator "ChessBase"]
[PlyCount "34"]
[EventDate "2019.10.17"]
[EventType "swiss"]
[EventCountry "GER"]
[SourceTitle "playchess.com"]
[Source "ChessBase"]
[SourceQuality "1"]
[TimeControl "40/5400+30:1800+30"]

1. d4 {[%emt 0:00:00]} Nf6 {[%emt 0:03:00]} 2. c4 {[%emt 0:00:00]} e6 {[%emt 0:00:13]} 3. g3 {[%emt 0:00:02]} Bb4+ {[%emt 0:00:50]} 4. Bd2 {[%emt 0:00:14]} a5 {[%emt 0:00:15]} 5. Bg2 {[%emt 0:00:18]} Nc6 {[%emt 0:01:23]} 6. Nf3 {[%emt 0:01:57]} d6 {[%emt 0:00:13]} 7. O-O {[%emt 0:00:33]} e5 {[%emt 0:00:17]} 8. Bxb4 {[%emt 0:11:23]} axb4 {[%emt 0:00:13]} 9. d5 {[%emt 0:00:40]} Nb8 {[%emt 0:10:51]} 10. Qd2 {[%emt 0:02:22]} c5 {[%emt 0:04:45]} 11. dxc6 {[%emt 0:01:23]} Nxc6 {[%emt 0:00:04]} 12. Rd1 {[%emt 0:01:06]} O-O {[%emt 0:04:12]} 13. Qc2 {[%emt 0:14:08]} e4 14. Nd4 {[%emt 0:06:25]} e3 {[%emt 0:00:46]} 15. fxe3 {[%emt 0:07:54]} Ng4 {[%emt 0:00:03]} 16. Bxc6 {[%emt 0:07:00]} bxc6 {[%emt 0:00:40]} 17. Nxc6 {[%emt 0:01:10]} Qf6 {[%emt 0:01:12]} 0-1

[Event "23rd OIBM 2019"]
[Site "Gmund am Tegernsee"]
[Date "2019.10.30"]
[Round "5.9"]
[White "Shevchenko, Kirill"]
[Black "Vetoshko, Volodymyr"]
[Result "1/2-1/2"]
[ECO "C67"]
[WhiteElo "2542"]
[BlackElo "2506"]
[Annotator "ChessBase"]
[PlyCount "47"]
[EventDate "2019.10.17"]
[EventType "swiss"]
[EventCountry "GER"]
[SourceTitle "playchess.com"]
[Source "ChessBase"]
[SourceQuality "1"]
[TimeControl "40/5400+30:1800+30"]

1. e4 {[%emt 0:00:00]} e5 {[%emt 0:00:00]} 2. Nf3 {[%emt 0:00:00]} Nc6 {[%emt 0:00:00]} 3. Bb5 {[%emt 0:00:00]} Nf6 {[%emt 0:00:21]} 4. O-O {[%emt 0:00:00]} Nxe4 {[%emt 0:00:16]} 5. Re1 {[%emt 0:00:00]} Nd6 {[%emt 0:00:45]} 6. Nxe5 {[%emt 0:00:04]} Be7 {[%emt 0:00:24]} 7. Bf1 {[%emt 0:00:10]} Nxe5 {[%emt 0:00:20]} 8. Rxe5 {[%emt 0:00:04]} O-O {[%emt 0:00:10]} 9. d4 {[%emt 0:00:55]} Bf6 {[%emt 0:00:12]} 10. Re1 {[%emt 0:00:24]} Re8 {[%emt 0:00:19]} 11. Nc3 {[%emt 0:03:07]} Rxe1 {[%emt 0:18:03]} 12. Qxe1 {[%emt 0:00:05]} Bxd4 {[%emt 0:04:19]} 13. Bf4 {[%emt 0:00:31]} Bxc3 {[%emt 0:02:55]} 14. Qxc3 {[%emt 0:01:20]} b6 {[%emt 0:01:02]} 15. Bxd6 {[%emt 0:21:34]} cxd6 {[%emt 0:00:06]} 16. Qf3 {[%emt 0:07:46]} Rb8 {[%emt 0:03:54]} 17. Re1 {[%emt 0:08:10]} Bb7 {[%emt 0:03:32]} 18. Qa3 {[%emt 0:01:31]} Bd5 {[%emt 0:05:04]} 19. Qxd6 {[%emt 0:04:16]} Be6 {[%emt 0:00:16]} 20. Bd3 {[%emt 0:07:51]} Rc8 {[%emt 0:07:11]} 21. f4 {[%emt 0:03:43]} Qf8 {[%emt 0:02:09]} 22. Qxf8+ {[%emt 0:07:41]} Kxf8 {[%emt 0:00:36]} 23. b3 {[%emt 0:02:42]} Rc5 {[%emt 0:07:49]} 24. Kf2 {[%emt 0:03:19]} 1/2-1/2

[Event "23rd OIBM 2019"]
[Site "Gmund am Tegernsee"]
[Date "2019.10.30"]
[Round "5.11"]
[White "Sethuraman, S.P."]
[Black "Zajogin, Alexander"]
[Result "1-0"]
[ECO "C50"]
[WhiteElo "2624"]
[BlackElo "2426"]
[Annotator "RC"]
[PlyCount "109"]
[EventDate "2019.10.17"]
[EventType "swiss"]
[EventCountry "GER"]
[SourceTitle "playchess.com"]
[Source "ChessBase"]
[SourceQuality "1"]
[TimeControl "40/5400+30:1800+30"]

1. e4 {[%emt 0:00:00]} e5 {[%emt 0:00:00]} 2. Nf3 {[%emt 0:00:00]} Nc6 {[%emt 0:00:00]} 3. Bc4 {[%emt 0:00:00]} Bc5 {[%emt 0:00:00]} 4. d3 {[%emt 0:00:00]} Nf6 {[%emt 0:00:02]} 5. O-O {[%emt 0:00:02]} d6 {[%emt 0:00:31]} 6. c3 {[%emt 0:00:05]} O-O {[%emt 0:02:59]} 7. Bg5 {[%emt 0:00:06]} h6 {[%emt 0:17:08]} 8. Bh4 {[%emt 0:00:06]} a6 {[%emt 0:00:58]} 9. a4 {[%emt 0:00:06]} g5 {[%emt 0:02:49]} 10. Bg3 {[%emt 0:00:07]} Ba7 {[%emt 0:00:36]} 11. Nbd2 {[%emt 0:00:07]} Bg4 {[%emt 0:02:30]} 12. h3 {[%emt 0:00:15]} Bh5 {[%emt 0:00:34]} 13. b4 {[%emt 0:00:26]} Bg6 {[%emt 0:09:37]} 14. Re1 {[%emt 0:25:05]} Nh5 {[%emt 0:14:31]} 15. Bh2 {[%emt 0:04:04]} Nf4 {[%emt 0:08:58]} 16. Nf1 {[%emt 0:00:19]} Kg7 {[%emt 0:01:21]} 17. Bxf4 {[%emt 0:20:26]} gxf4 {[%emt 0:00:23]} 18. Bd5 {[%emt 0:00:04]} Rb8 {[%emt 0:12:41]} 19. d4 {[%emt 0:00:11]} Qf6 {[%emt 0:07:19]} 20. N1h2 {[%emt 0:08:05]} h5 {[%emt 0:01:09]} 21. Bxc6 {[%emt 0:02:59]} bxc6 {[%emt 0:00:06]} 22. Qd3 {[%emt 0:00:03]} exd4 {[%emt 0:04:04]} 23. Qxa6 {[%emt 0:00:10]} Ra8 {[%emt 0:00:18]} 24. Qxc6 {[%emt 0:00:22]} dxc3 {[%emt 0:00:17]} 25. Rac1 {[%emt 0:00:53]} Bd4 {[%emt 0:03:47]} 26. Red1 {[%emt 0:04:53]} Be5 {[%emt 0:00:52]} 27. a5 {[%emt 0:00:38]} Rfb8 {[%emt 0:00:48]} 28. Nxe5 {[%emt 0:01:47]} dxe5 {[%emt 0:04:48]} 29. Qxc3 {[%emt 0:00:07]} Bxe4 {[%emt 0:00:25]} 30. Re1 {[%emt 0:08:07]} Bg6 {[%emt 0:00:08]} 31. Nf3 {[%emt 0:00:25]} e4 {[%emt 0:01:15]} 32. Ne5 {[%emt 0:00:05]} Bf5 {[%emt 0:01:51]} 33. Nc6 {[%emt 0:01:15]} Re8 {[%emt 0:00:23]} 34. b5 {[%emt 0:04:07]} Qxc3 {[%emt 0:01:46]} 35. Rxc3 {[%emt 0:00:06]} e3 {[%emt 0:00:58]} 36. fxe3 {[%emt 0:01:02]} Rxe3 {[%emt 0:00:52]} 37. Rexe3 {[%emt 0:00:44]} fxe3 {[%emt 0:00:06]} 38. Nd4 {[%emt 0:04:40]} Bg6 {[%emt 0:00:39]} 39. a6 {[%emt 0:03:52]} Rd8 {[%emt 0:00:05]} 40. a7 {[%emt 0:03:18]} Be4 {[%emt 0:00:06]} 41. Rc4 {[%emt 0:40:48]} Kh7 {[%emt 0:25:54]} 42. Ne2 {[%emt 0:00:00]} Rd1+ {[%emt 0:03:01]} 43. Kh2 {[%emt 0:00:00]} Ba8 {[%emt 0:00:09]} 44. Rxc7 {[%emt 0:00:00]} Rd2 {[%emt 0:01:33]} 45. Rxf7+ {[%emt 0:00:00]} Kg6 {[%emt 0:00:26]} 46. Rf8 {[%emt 0:00:00]} Bb7 {[%emt 0:00:25]} 47. Rb8 {[%emt 0:00:00]} Be4 {[%emt 0:00:49]} 48. Re8 {[%emt 0:00:00]} Bb7 {[%emt 0:01:04]} 49. Rxe3 {[%emt 0:00:00]} Rb2 {[%emt 0:00:08]} 50. Re7 {[%emt 0:00:00]} Ba8 {[%emt 0:00:38]} 51. Re8 {[%emt 0:00:00]} Bb7 {[%emt 0:00:26]} 52. Nf4+ {[%emt 0:00:00]} Kg5 {[%emt 0:00:30]} 53. Rf8 {[%emt 0:00:00]} h4 {[%emt 0:00:24]} 54. a8=Q {[%emt 0:00:00]} Bxa8 {[%emt 0:00:18]} 55. Ne6+ {[%emt 0:00:00]} 1-0

[Event "23rd OIBM 2019"]
[Site "Gmund am Tegernsee"]
[Date "2019.10.30"]
[Round "5.16"]
[White "Donchenko, Anatoly"]
[Black "Loiseau, Quentin"]
[Result "0-1"]
[ECO "A33"]
[WhiteElo "2229"]
[BlackElo "2471"]
[Annotator "ChessBase"]
[PlyCount "72"]
[EventDate "2019.10.17"]
[EventType "swiss"]
[EventCountry "GER"]
[SourceTitle "playchess.com"]
[Source "ChessBase"]
[SourceQuality "1"]
[TimeControl "40/5400+30:1800+30"]

1. c4 {[%emt 0:00:00]} c5 {[%emt 0:00:00]} 2. Nf3 {[%emt 0:00:08]} Nc6 {[%emt 0:00:03]} 3. d4 {[%emt 0:00:21]} cxd4 {[%emt 0:00:11]} 4. Nxd4 {[%emt 0:00:08]} Nf6 {[%emt 0:00:09]} 5. Nc3 {[%emt 0:00:38]} e6 {[%emt 0:00:08]} 6. a3 {[%emt 0:03:16]} Bc5 {[%emt 0:01:24]} 7. e3 {[%emt 0:04:50]} O-O {[%emt 0:01:24]} 8. Be2 {[%emt 0:03:38]} Bb6 {[%emt 0:08:41]} 9. O-O {[%emt 0:02:21]} d5 {[%emt 0:02:37]} 10. Nxc6 {[%emt 0:08:40]} bxc6 {[%emt 0:00:08]} 11. b4 {[%emt 0:00:07]} Bc7 {[%emt 0:02:39]} 12. Bb2 {[%emt 0:02:28]} Rb8 {[%emt 0:01:22]} 13. Qc2 {[%emt 0:04:29]} a5 {[%emt 0:03:05]} 14. Rfd1 {[%emt 0:02:22]} Qe7 {[%emt 0:05:41]} 15. g3 {[%emt 0:04:15]} dxc4 {[%emt 0:08:12]} 16. Ne4 {[%emt 0:02:56]} Nxe4 {[%emt 0:03:22]} 17. Qxe4 {[%emt 0:00:22]} c5 {[%emt 0:00:13]} 18. Qxc4 {[%emt 0:02:59]} axb4 {[%emt 0:02:50]} 19. axb4 {[%emt 0:00:26]} cxb4 {[%emt 0:02:33]} 20. Bd4 {[%emt 0:03:38]} Bd6 {[%emt 0:06:14]} 21. Bxg7 {[%emt 0:02:04]} Kxg7 {[%emt 0:00:18]} 22. Qd4+ {[%emt 0:00:02]} e5 {[%emt 0:00:07]} 23. Qxd6 {[%emt 0:00:09]} Qxd6 {[%emt 0:00:04]} 24. Rxd6 {[%emt 0:00:11]} b3 {[%emt 0:00:47]} 25. Rb1 {[%emt 0:02:14]} Be6 {[%emt 0:00:50]} 26. Rb2 {[%emt 0:02:08]} Rfd8 {[%emt 0:04:01]} 27. Ra6 {[%emt 0:08:54]} Rdc8 {[%emt 0:02:13]} 28. Bd3 {[%emt 0:02:39]} Rc3 {[%emt 0:04:52]} 29. Be4 {[%emt 0:02:24]} Bh3 {[%emt 0:02:10]} 30. f3 {[%emt 0:00:52]} Rc1+ {[%emt 0:02:38]} 31. Kf2 {[%emt 0:00:10]} Rh1 {[%emt 0:00:03]} 32. Rb1 {[%emt 0:00:26]} Rxh2+ {[%emt 0:00:08]} 33. Kg1 {[%emt 0:00:07]} Rg2+ {[%emt 0:00:29]} 34. Kh1 {[%emt 0:00:09]} Rd2 {[%emt 0:00:39]} 35. g4 {[%emt 0:00:25]} b2 {[%emt 0:00:37]} 36. Ra2 {[%emt 0:03:15]} Rb4 {[%emt 0:02:50]} 0-1

[Event "23rd OIBM 2019"]
[Site "Gmund am Tegernsee"]
[Date "2019.10.30"]
[Round "5.22"]
[White "Gschnitzer, Adrian"]
[Black "Richter, Nils"]
[Result "1-0"]
[ECO "C25"]
[WhiteElo "2412"]
[BlackElo "2213"]
[Annotator "NA"]
[PlyCount "67"]
[EventDate "2019.10.17"]
[EventType "swiss"]
[EventCountry "GER"]
[SourceTitle "playchess.com"]
[Source "ChessBase"]
[SourceQuality "1"]
[TimeControl "40/5400+30:1800+30"]

1. e4 {[%emt 0:00:00]} e5 {[%emt 0:00:00]} 2. Nc3 {[%emt 0:00:15]} Nc6 {[%emt 0:00:00]} 3. Bc4 {[%emt 0:04:15]} Bc5 {[%emt 0:02:14]} 4. Qg4 {[%emt 0:00:10]} g6 {[%emt 0:09:36]} 5. Qg3 {[%emt 0:01:57]} Nf6 {[%emt 0:03:51]} 6. d3 {[%emt 0:01:21]} d6 {[%emt 0:08:02]} 7. Bg5 {[%emt 0:05:18]} Nh5 {[%emt 0:05:39]} 8. Qh4 {[%emt 0:01:53]} f6 {[%emt 0:02:22]} 9. Bh6 {[%emt 0:14:47]} Bb4 {[%emt 0:09:09]} 10. Nge2 {[%emt 0:00:39]} Nd4 {[%emt 0:09:59]} 11. O-O-O {[%emt 0:00:36]} Nxe2+ {[%emt 0:00:51]} 12. Nxe2 {[%emt 0:00:11]} Qe7 {[%emt 0:01:15]} 13. g4 {[%emt 0:09:44]} Ng7 {[%emt 0:00:59]} 14. g5 {[%emt 0:00:32]} f5 {[%emt 0:02:11]} 15. Bxg7 {[%emt 0:00:40]} Qxg7 {[%emt 0:00:27]} 16. exf5 {[%emt 0:00:18]} Bxf5 {[%emt 0:01:26]} 17. Bb5+ {[%emt 0:00:38]} c6 {[%emt 0:00:02]} 18. Qxb4 {[%emt 0:00:18]} cxb5 {[%emt 0:00:09]} 19. Qxd6 {[%emt 0:00:29]} Qe7 {[%emt 0:01:57]} 20. Qxe7+ {[%emt 0:03:55]} Kxe7 {[%emt 0:02:24]} 21. Rhe1 {[%emt 0:00:30]} Kf7 {[%emt 0:23:31]} 22. Nc3 {[%emt 0:01:18]} b4 {[%emt 0:01:58]} 23. Nd5 {[%emt 0:00:45]} Rae8 {[%emt 0:03:47]} 24. h4 {[%emt 0:06:51]} h6 {[%emt 0:02:10]} 25. Rd2 {[%emt 0:05:39]} hxg5 {[%emt 0:02:58]} 26. hxg5 {[%emt 0:00:02]} a5 {[%emt 0:01:35]} 27. Rde2 {[%emt 0:01:26]} Rh2 {[%emt 0:00:59]} 28. f4 {[%emt 0:01:07]} Rxe2 {[%emt 0:01:37]} 29. Rxe2 {[%emt 0:00:02]} Rh8 {[%emt 0:02:03]} 30. fxe5 {[%emt 0:01:24]} Rh1+ {[%emt 0:01:05]} 31. Kd2 {[%emt 0:00:02]} Rb1 {[%emt 0:00:14]} 32. Nc7 {[%emt 0:04:02]} Bg4 {[%emt 0:00:50]} 33. e6+ {[%emt 0:00:36]} Ke7 {[%emt 0:00:01]} 34. Nd5+ {[%emt 0:00:14]} 1-0

[Event "23rd OIBM 2019"]
[Site "Gmund am Tegernsee"]
[Date "2019.10.30"]
[Round "5.23"]
[White "Padmini, Rout"]
[Black "Yi, Danny"]
[Result "1-0"]
[ECO "A05"]
[WhiteElo "2394"]
[BlackElo "2211"]
[Annotator "NA"]
[PlyCount "65"]
[EventDate "2019.10.17"]
[EventType "swiss"]
[EventCountry "GER"]
[SourceTitle "playchess.com"]
[Source "ChessBase"]
[SourceQuality "1"]
[TimeControl "40/5400+30:1800+30"]

1. Nf3 {[%emt 0:00:00]} Nf6 {[%emt 0:00:00]} 2. g3 {[%emt 0:00:00]} g6 {[%emt 0:00:19]} 3. Bg2 {[%emt 0:00:11]} Bg7 {[%emt 0:00:07]} 4. O-O {[%emt 0:00:24]} O-O {[%emt 0:00:17]} 5. d4 {[%emt 0:00:11]} d5 {[%emt 0:06:18]} 6. c3 {[%emt 0:01:21]} Nbd7 {[%emt 0:02:16]} 7. a4 {[%emt 0:01:47]} Re8 {[%emt 0:03:48]} 8. a5 {[%emt 0:10:37]} a6 {[%emt 0:06:33]} 9. c4 {[%emt 0:06:30]} c5 {[%emt 0:11:30]} 10. cxd5 {[%emt 0:03:50]} Nxd5 {[%emt 0:02:21]} 11. e4 {[%emt 0:01:24]} N5f6 {[%emt 0:12:48]} 12. e5 {[%emt 0:06:49]} Nd5 {[%emt 0:03:53]} 13. Nc3 {[%emt 0:10:25]} Nf8 {[%emt 0:08:49]} 14. Ng5 {[%emt 0:09:51]} Nxc3 {[%emt 0:02:19]} 15. bxc3 {[%emt 0:00:07]} h6 {[%emt 0:03:52]} 16. Ne4 {[%emt 0:02:05]} cxd4 {[%emt 0:00:54]} 17. cxd4 {[%emt 0:00:12]} Rb8 {[%emt 0:00:49]} 18. Be3 {[%emt 0:05:09]} b6 {[%emt 0:06:56]} 19. axb6 {[%emt 0:00:49]} Qxb6 {[%emt 0:00:38]} 20. Qd2 {[%emt 0:02:07]} Rd8 {[%emt 0:01:26]} 21. d5 {[%emt 0:01:39]} Qb2 {[%emt 0:03:17]} 22. f4 {[%emt 0:05:00]} Qxd2 {[%emt 0:03:38]} 23. Nxd2 {[%emt 0:03:41]} f6 {[%emt 0:04:09]} 24. e6 {[%emt 0:01:40]} f5 {[%emt 0:02:57]} 25. Rab1 {[%emt 0:00:49]} Bb7 {[%emt 0:03:53]} 26. Nc4 {[%emt 0:02:54]} Ba8 {[%emt 0:01:40]} 27. Rxb8 {[%emt 0:02:46]} Rxb8 {[%emt 0:00:02]} 28. Nb6 {[%emt 0:00:32]} Bb7 {[%emt 0:01:17]} 29. Rc1 {[%emt 0:02:09]} Bf6 {[%emt 0:00:58]} 30. Rc7 {[%emt 0:01:05]} a5 {[%emt 0:02:11]} 31. Nd7 {[%emt 0:02:14]} Nxd7 {[%emt 0:01:57]} 32. exd7 {[%emt 0:00:12]} a4 {[%emt 0:02:52]} 33. Rxb7 {[%emt 0:01:45]} 1-0